[Event "Titled Tuesday Blitz January 17 Early 2023"]
[White "Andreikin, Dmitry"]
[Black "Sanal, Vahap"]
[WhiteFideId "4158814"]
[BlackFideId "6300545"]
[WhiteElo "2729"]
[BlackElo "2600"]
[Result "1/2-1/2"]
[Round "06"]
[TimeControl "180+2"]
[Date "2023.01.17"]
[WhiteClock "0:00:21"]
[BlackClock "0:00:08"]

1. Nf3 {[%clk 0:03:00]}  Nf6 {[%clk 0:02:55]} 2. c4 {[%clk 0:03:00]}  e6 {[%clk 0:02:54]} 3. d4 {[%clk 0:02:56]}  b6 {[%clk 0:02:53]} 4. a3 {[%clk 0:02:55]}  Bb7 {[%clk 0:02:52]} 5. Nc3 {[%clk 0:02:54]}  g6 {[%clk 0:02:50]} 6. d5 {[%clk 0:02:52]}  Bg7 {[%clk 0:02:47]} 7. e4 {[%clk 0:02:52]}  O-O {[%clk 0:02:45]} 8. Bd3 {[%clk 0:02:51]}  exd5 {[%clk 0:02:45]} 9. cxd5 {[%clk 0:02:50]}  c6 {[%clk 0:02:45]} 10. dxc6 {[%clk 0:02:47]}  Nxc6 {[%clk 0:02:38]} 11. Bg5 {[%clk 0:02:46]}  h6 {[%clk 0:02:34]} 12. Bh4 {[%clk 0:02:47]}  g5 {[%clk 0:02:30]} 13. Bg3 {[%clk 0:02:47]}  d5 {[%clk 0:02:31]} 14. O-O {[%clk 0:02:46]}  dxe4 {[%clk 0:02:26]} 15. Nxe4 {[%clk 0:02:47]}  Nxe4 {[%clk 0:02:25]} 16. Bxe4 {[%clk 0:02:48]}  Bxb2 {[%clk 0:01:59]} 17. Ra2 {[%clk 0:02:48]}  Qxd1 {[%clk 0:01:52]} 18. Rxd1 {[%clk 0:02:47]}  Bg7 {[%clk 0:01:53]} 19. h4 {[%clk 0:02:38]}  gxh4 {[%clk 0:01:47]} 20. Nxh4 {[%clk 0:02:24]}  Rad8 {[%clk 0:01:46]} 21. Rc1 {[%clk 0:02:17]}  Na5 {[%clk 0:01:01]} 22. Bxb7 {[%clk 0:02:17]}  Nxb7 {[%clk 0:01:02]} 23. Rc7 {[%clk 0:02:17]}  Nc5 {[%clk 0:01:03]} 24. Rxa7 {[%clk 0:02:13]}  Rfe8 {[%clk 0:01:03]} 25. Kh2 {[%clk 0:02:05]}  Rd5 {[%clk 0:01:00]} 26. Rc2 {[%clk 0:02:00]}  Rh5 {[%clk 0:01:00]} 27. Rc4 {[%clk 0:01:56]}  Ne4 {[%clk 0:00:55]} 28. f3 {[%clk 0:01:36]}  Nxg3 {[%clk 0:00:25]} 29. Kxg3 {[%clk 0:01:36]}  Rg5+ {[%clk 0:00:25]} 30. Rg4 {[%clk 0:01:30]}  Re2 {[%clk 0:00:23]} 31. Rxg5 {[%clk 0:01:15]}  hxg5 {[%clk 0:00:24]} 32. Nf5 {[%clk 0:01:16]}  Be5+ {[%clk 0:00:25]} 33. Kh3 {[%clk 0:01:15]}  Kh7 {[%clk 0:00:16]} 34. g3 {[%clk 0:01:08]}  Kg6 {[%clk 0:00:13]} 35. Kg4 {[%clk 0:01:08]}  Rc2 {[%clk 0:00:10]} 36. Ne7+ {[%clk 0:00:41]}  Kf6 {[%clk 0:00:11]} 37. f4 {[%clk 0:00:42]}  gxf4 {[%clk 0:00:10]} 38. gxf4 {[%clk 0:00:43]}  Rc4 {[%clk 0:00:06]} 39. Nd5+ {[%clk 0:00:38]}  Ke6 {[%clk 0:00:06]} 40. Re7+ {[%clk 0:00:35]}  Kxd5 {[%clk 0:00:05]} 41. Rxe5+ {[%clk 0:00:36]}  Kd6 {[%clk 0:00:06]} 42. Rb5 {[%clk 0:00:33]}  Kc6 {[%clk 0:00:04]} 43. Rf5 {[%clk 0:00:33]}  Ra4 {[%clk 0:00:05]} 44. Rxf7 {[%clk 0:00:33]}  Rxa3 {[%clk 0:00:06]} 45. f5 {[%clk 0:00:33]}  b5 {[%clk 0:00:05]} 46. f6 {[%clk 0:00:32]}  Ra1 {[%clk 0:00:06]} 47. Rf8 {[%clk 0:00:22]}  Rf1 {[%clk 0:00:06]} 48. Kg5 {[%clk 0:00:20]}  b4 {[%clk 0:00:05]} 49. Rb8 {[%clk 0:00:20]}  Kc5 {[%clk 0:00:05]} 50. Kg6 {[%clk 0:00:19]}  Kc4 {[%clk 0:00:06]} 51. f7 {[%clk 0:00:20]}  b3 {[%clk 0:00:06]} 52. Rb6 {[%clk 0:00:18]}  Rxf7 {[%clk 0:00:04]} 53. Kxf7 {[%clk 0:00:18]}  Kc3 {[%clk 0:00:05]} 54. Ke6 {[%clk 0:00:19]}  b2 {[%clk 0:00:06]} 55. Kd5 {[%clk 0:00:19]}  Kc2 {[%clk 0:00:06]} 56. Kc4 {[%clk 0:00:20]}  b1=Q {[%clk 0:00:07]} 57. Rxb1 {[%clk 0:00:21]}  Kxb1 {[%clk 0:00:08]} 1/2-1/2


[Site "https://www.chess.com"]

[Event "Titled Tuesday Blitz January 17 Early 2023"]
[White "Le, Tuan Minh"]
[Black "Bortnyk, Olexandr"]
[WhiteFideId "12401153"]
[BlackFideId "14120828"]
[WhiteElo "2542"]
[BlackElo "2605"]
[Result "1-0"]
[Round "06"]
[TimeControl "180+2"]
[Date "2023.01.17"]
[WhiteClock "0:00:42"]
[BlackClock "0:00:13"]

1. d4 {[%clk 0:03:00]}  d6 {[%clk 0:02:54]} 2. Nf3 {[%clk 0:03:01]}  Nf6 {[%clk 0:02:53]} 3. Bg5 {[%clk 0:02:57]}  Nbd7 {[%clk 0:02:53]} 4. Nbd2 {[%clk 0:02:56]}  g6 {[%clk 0:02:51]} 5. c3 {[%clk 0:02:56]}  Bg7 {[%clk 0:02:52]} 6. e4 {[%clk 0:02:56]}  e5 {[%clk 0:02:48]} 7. Bc4 {[%clk 0:02:57]}  O-O {[%clk 0:02:48]} 8. O-O {[%clk 0:02:56]}  Qe8 {[%clk 0:02:47]} 9. Re1 {[%clk 0:02:56]}  b6 {[%clk 0:02:46]} 10. a4 {[%clk 0:02:56]}  a6 {[%clk 0:02:45]} 11. Nf1 {[%clk 0:02:56]}  Bb7 {[%clk 0:02:45]} 12. Ng3 {[%clk 0:02:56]}  Qe7 {[%clk 0:02:18]} 13. Qd2 {[%clk 0:02:49]}  Rfe8 {[%clk 0:02:19]} 14. h3 {[%clk 0:02:48]}  Qf8 {[%clk 0:02:18]} 15. Qc2 {[%clk 0:02:48]}  c6 {[%clk 0:02:10]} 16. Bf1 {[%clk 0:02:39]}  d5 {[%clk 0:02:06]} 17. exd5 {[%clk 0:02:04]}  Nxd5 {[%clk 0:02:02]} 18. dxe5 {[%clk 0:02:03]}  Nxe5 {[%clk 0:02:03]} 19. Nxe5 {[%clk 0:01:59]}  Rxe5 {[%clk 0:01:45]} 20. Rxe5 {[%clk 0:01:39]}  Bxe5 {[%clk 0:01:46]} 21. Re1 {[%clk 0:01:39]}  Re8 {[%clk 0:01:23]} 22. Qd2 {[%clk 0:01:38]}  b5 {[%clk 0:01:16]} 23. axb5 {[%clk 0:01:14]}  cxb5 {[%clk 0:00:53]} 24. Bh6 {[%clk 0:01:14]}  Bg7 {[%clk 0:00:51]} 25. Bxg7 {[%clk 0:01:10]}  Kxg7 {[%clk 0:00:52]} 26. Ne4 {[%clk 0:01:06]}  Qe7 {[%clk 0:00:45]} 27. Qd4+ {[%clk 0:01:01]}  Kh6 {[%clk 0:00:27]} 28. Nd6 {[%clk 0:00:54]}  Qxd6 {[%clk 0:00:19]} 29. Rxe8 {[%clk 0:00:55]}  Bc6 {[%clk 0:00:15]} 30. Re4 {[%clk 0:00:52]}  Qf6 {[%clk 0:00:13]} 31. Qxf6 {[%clk 0:00:47]}  Nxf6 {[%clk 0:00:14]} 32. Re7 {[%clk 0:00:48]}  Bd5 {[%clk 0:00:13]} 33. Ra7 {[%clk 0:00:48]}  Ne4 {[%clk 0:00:11]} 34. Rxa6 {[%clk 0:00:48]}  Kg5 {[%clk 0:00:11]} 35. Bxb5 {[%clk 0:00:47]}  f5 {[%clk 0:00:12]} 36. c4 {[%clk 0:00:45]}  Bf7 {[%clk 0:00:12]} 37. Ra7 {[%clk 0:00:43]}  Be6 {[%clk 0:00:12]} 38. Rxh7 {[%clk 0:00:42]}  Nc5 {[%clk 0:00:13]} 1-0


[Site "https://www.chess.com"]

[Event "Titled Tuesday Blitz January 17 Early 2023"]
[White "Svane, Rasmus"]
[Black "Indjic, Aleksandar"]
[WhiteFideId "4657101"]
[BlackFideId "911925"]
[WhiteElo "2623"]
[BlackElo "2618"]
[Result "1-0"]
[Round "06"]
[TimeControl "180+2"]
[Date "2023.01.17"]
[WhiteClock "0:00:12"]
[BlackClock "0:00:06"]

1. Nf3 {[%clk 0:02:59]}  c5 {[%clk 0:02:59]} 2. c4 {[%clk 0:02:58]}  g6 {[%clk 0:03:00]} 3. d4 {[%clk 0:02:51]}  Bg7 {[%clk 0:03:00]} 4. d5 {[%clk 0:02:50]}  d6 {[%clk 0:03:00]} 5. e4 {[%clk 0:02:50]}  Nf6 {[%clk 0:03:00]} 6. Bd3 {[%clk 0:02:50]}  O-O {[%clk 0:03:00]} 7. Nc3 {[%clk 0:02:50]}  e6 {[%clk 0:03:00]} 8. h3 {[%clk 0:02:43]}  exd5 {[%clk 0:02:59]} 9. exd5 {[%clk 0:02:41]}  Re8+ {[%clk 0:02:59]} 10. Be3 {[%clk 0:02:41]}  Rxe3+ {[%clk 0:02:59]} 11. fxe3 {[%clk 0:02:42]}  Nbd7 {[%clk 0:02:58]} 12. O-O {[%clk 0:02:42]}  Qe7 {[%clk 0:02:59]} 13. Qc2 {[%clk 0:02:32]}  Nh5 {[%clk 0:02:58]} 14. Rf2 {[%clk 0:02:22]}  Ne5 {[%clk 0:02:51]} 15. Nxe5 {[%clk 0:02:22]}  Bxe5 {[%clk 0:02:50]} 16. Raf1 {[%clk 0:02:21]}  f5 {[%clk 0:02:49]} 17. Rf3 {[%clk 0:02:18]}  Ng3 {[%clk 0:02:48]} 18. R1f2 {[%clk 0:02:13]}  Qg5 {[%clk 0:02:41]} 19. Ne2 {[%clk 0:01:53]}  Nxe2+ {[%clk 0:02:37]} 20. Qxe2 {[%clk 0:01:53]}  Bd7 {[%clk 0:02:37]} 21. Kh1 {[%clk 0:01:35]}  Bg3 {[%clk 0:02:34]} 22. Rf1 {[%clk 0:01:34]}  Re8 {[%clk 0:02:34]} 23. Qd2 {[%clk 0:01:24]}  h5 {[%clk 0:02:31]} 24. a3 {[%clk 0:01:20]}  b6 {[%clk 0:01:50]} 25. b4 {[%clk 0:01:19]}  Re7 {[%clk 0:01:33]} 26. Qc1 {[%clk 0:01:16]}  Qh4 {[%clk 0:01:28]} 27. Kg1 {[%clk 0:00:55]}  Be5 {[%clk 0:01:25]} 28. Kh1 {[%clk 0:00:48]}  Kg7 {[%clk 0:01:24]} 29. Qd2 {[%clk 0:00:47]}  Rf7 {[%clk 0:01:12]} 30. Qf2 {[%clk 0:00:48]}  Qd8 {[%clk 0:01:01]} 31. Qd2 {[%clk 0:00:46]}  a5 {[%clk 0:00:48]} 32. bxa5 {[%clk 0:00:43]}  bxa5 {[%clk 0:00:49]} 33. Qf2 {[%clk 0:00:43]}  Qe7 {[%clk 0:00:40]} 34. g3 {[%clk 0:00:41]}  a4 {[%clk 0:00:39]} 35. e4 {[%clk 0:00:37]}  h4 {[%clk 0:00:38]} 36. exf5 {[%clk 0:00:27]}  hxg3 {[%clk 0:00:36]} 37. Rxg3 {[%clk 0:00:27]}  Bxg3 {[%clk 0:00:19]} 38. Qxg3 {[%clk 0:00:28]}  Rf6 {[%clk 0:00:18]} 39. Rg1 {[%clk 0:00:22]}  Qf8 {[%clk 0:00:14]} 40. Be4 {[%clk 0:00:19]}  Qf7 {[%clk 0:00:14]} 41. fxg6 {[%clk 0:00:16]}  Qe8 {[%clk 0:00:14]} 42. Qh4 {[%clk 0:00:16]}  Rf8 {[%clk 0:00:05]} 43. Qh7+ {[%clk 0:00:15]}  Kf6 {[%clk 0:00:06]} 44. g7 {[%clk 0:00:15]}  Rg8 {[%clk 0:00:06]} 45. Qh4+ {[%clk 0:00:13]}  Ke5 {[%clk 0:00:06]} 46. Bg6 {[%clk 0:00:13]}  Qd8 {[%clk 0:00:06]} 47. Re1# {[%clk 0:00:12]} 1-0


[Site "https://www.chess.com"]

[Event "Titled Tuesday Blitz January 17 Early 2023"]
[White "Dubov, Daniil"]
[Black "Samunenkov, Ihor"]
[WhiteFideId "24126055"]
[BlackFideId "14187086"]
[WhiteElo "2708"]
[BlackElo "2501"]
[Result "1-0"]
[Round "06"]
[TimeControl "180+2"]
[Date "2023.01.17"]
[WhiteClock "0:00:04"]
[BlackClock "0:00:01"]

1. d4 {[%clk 0:03:00]}  d5 {[%clk 0:03:00]} 2. Nf3 {[%clk 0:03:00]}  Nf6 {[%clk 0:02:54]} 3. Bg5 {[%clk 0:02:59]}  Ne4 {[%clk 0:02:50]} 4. Bh4 {[%clk 0:02:59]}  Qd6 {[%clk 0:02:49]} 5. c4 {[%clk 0:02:57]}  c6 {[%clk 0:02:30]} 6. Nc3 {[%clk 0:02:50]}  Nxc3 {[%clk 0:01:57]} 7. bxc3 {[%clk 0:02:49]}  g6 {[%clk 0:01:58]} 8. e3 {[%clk 0:02:22]}  Bg7 {[%clk 0:01:58]} 9. Be2 {[%clk 0:02:21]}  O-O {[%clk 0:01:58]} 10. O-O {[%clk 0:02:21]}  Bg4 {[%clk 0:01:52]} 11. Rb1 {[%clk 0:02:15]}  b6 {[%clk 0:01:50]} 12. Qb3 {[%clk 0:01:34]}  e6 {[%clk 0:01:29]} 13. h3 {[%clk 0:01:06]}  Bf5 {[%clk 0:01:14]} 14. Rbc1 {[%clk 0:01:05]}  Nd7 {[%clk 0:01:08]} 15. Nd2 {[%clk 0:01:00]}  e5 {[%clk 0:00:56]} 16. cxd5 {[%clk 0:00:55]}  cxd5 {[%clk 0:00:56]} 17. Rfd1 {[%clk 0:00:46]}  Rac8 {[%clk 0:00:48]} 18. Bf3 {[%clk 0:00:41]}  Be6 {[%clk 0:00:42]} 19. Bg3 {[%clk 0:00:38]}  Qc6 {[%clk 0:00:28]} 20. Qa3 {[%clk 0:00:34]}  b5 {[%clk 0:00:21]} 21. Be2 {[%clk 0:00:16]}  a6 {[%clk 0:00:17]} 22. Nf3 {[%clk 0:00:15]}  e4 {[%clk 0:00:14]} 23. Nd2 {[%clk 0:00:14]}  Rfe8 {[%clk 0:00:08]} 24. Rc2 {[%clk 0:00:11]}  Ra8 {[%clk 0:00:05]} 25. Rdc1 {[%clk 0:00:09]}  Nb6 {[%clk 0:00:06]} 26. Nb3 {[%clk 0:00:06]}  Bf8 {[%clk 0:00:06]} 27. Qa5 {[%clk 0:00:05]}  Nc4 {[%clk 0:00:05]} 28. Bxc4 {[%clk 0:00:05]}  Qxc4 {[%clk 0:00:06]} 29. Nc5 {[%clk 0:00:06]}  Bxc5 {[%clk 0:00:04]} 30. dxc5 {[%clk 0:00:06]}  Qxc5 {[%clk 0:00:05]} 31. Be5 {[%clk 0:00:06]}  Qc6 {[%clk 0:00:03]} 32. Bd4 {[%clk 0:00:06]}  Bd7 {[%clk 0:00:03]} 33. Qa3 {[%clk 0:00:05]}  Rac8 {[%clk 0:00:02]} 34. Qb2 {[%clk 0:00:05]}  Qc4 {[%clk 0:00:01]} 35. Rd2 {[%clk 0:00:04]}  Be6 {[%clk 0:00:02]} 36. Rcd1 {[%clk 0:00:04]}  Rb8 {[%clk 0:00:02]} 37. a3 {[%clk 0:00:04]}  a5 {[%clk 0:00:02]} 38. Qa1 {[%clk 0:00:04]}  Rec8 {[%clk 0:00:02]} 39. Kh2 {[%clk 0:00:04]}  b4 {[%clk 0:00:02]} 40. cxb4 {[%clk 0:00:04]}  axb4 {[%clk 0:00:02]} 41. Bh8 {[%clk 0:00:03]}  f6 {[%clk 0:00:01]} 42. Qxf6 {[%clk 0:00:03]}  Rc7 {[%clk 0:00:01]} 43. Qxe6+ {[%clk 0:00:03]}  Kxh8 {[%clk 0:00:02]} 44. Qe5+ {[%clk 0:00:03]}  Kg8 {[%clk 0:00:02]} 45. axb4 {[%clk 0:00:04]}  Qxb4 {[%clk 0:00:01]} 46. Qxc7 {[%clk 0:00:03]}  Rf8 {[%clk 0:00:01]} 47. Qg3 {[%clk 0:00:03]}  Qe7 {[%clk 0:00:01]} 48. Rxd5 {[%clk 0:00:04]}  Qe6 {[%clk 0:00:01]} 49. Rd7 {[%clk 0:00:04]} 1-0


[Site "https://www.chess.com"]

[Event "Titled Tuesday Blitz January 17 Early 2023"]
[White "Martinez Alcantara, Jose Eduardo"]
[Black "Krzyzanowski, Marcin"]
[WhiteFideId "3805662"]
[BlackFideId "1132199"]
[WhiteElo "2619"]
[BlackElo "2512"]
[Result "1-0"]
[Round "06"]
[TimeControl "180+2"]
[Date "2023.01.17"]
[WhiteClock "0:01:01"]
[BlackClock "0:00:01"]

1. e4 {[%clk 0:03:00]}  c6 {[%clk 0:02:59]} 2. d4 {[%clk 0:03:00]}  d5 {[%clk 0:02:59]} 3. e5 {[%clk 0:03:01]}  Bf5 {[%clk 0:02:59]} 4. h4 {[%clk 0:03:01]}  h5 {[%clk 0:02:58]} 5. Bd3 {[%clk 0:03:02]}  Bxd3 {[%clk 0:02:58]} 6. Qxd3 {[%clk 0:03:03]}  Qa5+ {[%clk 0:02:58]} 7. b4 {[%clk 0:03:03]}  Qa6 {[%clk 0:02:54]} 8. e6 {[%clk 0:03:03]}  Qxd3 {[%clk 0:02:54]} 9. cxd3 {[%clk 0:03:04]}  Na6 {[%clk 0:02:50]} 10. a3 {[%clk 0:03:03]}  fxe6 {[%clk 0:02:49]} 11. Nd2 {[%clk 0:03:02]}  Nf6 {[%clk 0:02:48]} 12. Ndf3 {[%clk 0:03:02]}  Nc7 {[%clk 0:02:47]} 13. Nh3 {[%clk 0:03:02]}  a5 {[%clk 0:02:47]} 14. Rb1 {[%clk 0:02:54]}  axb4 {[%clk 0:02:46]} 15. Rxb4 {[%clk 0:02:55]}  b5 {[%clk 0:02:41]} 16. O-O {[%clk 0:02:53]}  Nd7 {[%clk 0:02:35]} 17. Bf4 {[%clk 0:02:40]}  Na6 {[%clk 0:02:21]} 18. Rbb1 {[%clk 0:02:35]}  e5 {[%clk 0:02:19]} 19. Bxe5 {[%clk 0:02:30]}  e6 {[%clk 0:02:17]} 20. Nf4 {[%clk 0:02:30]}  Rh6 {[%clk 0:02:16]} 21. Rfe1 {[%clk 0:02:29]}  Nxe5 {[%clk 0:02:11]} 22. Rxe5 {[%clk 0:02:22]}  Kd7 {[%clk 0:02:03]} 23. Rg5 {[%clk 0:02:19]}  Nc7 {[%clk 0:01:58]} 24. Ne5+ {[%clk 0:02:18]}  Ke8 {[%clk 0:01:49]} 25. Nxh5 {[%clk 0:02:15]}  Rxa3 {[%clk 0:01:46]} 26. Nxg7+ {[%clk 0:02:15]}  Ke7 {[%clk 0:01:44]} 27. Nxc6+ {[%clk 0:01:58]}  Kd6 {[%clk 0:01:23]} 28. Ne5 {[%clk 0:01:55]}  Rxh4 {[%clk 0:01:21]} 29. Rc1 {[%clk 0:01:51]}  Ra6 {[%clk 0:01:14]} 30. Nf7+ {[%clk 0:01:46]}  Kd7 {[%clk 0:01:14]} 31. Ne5+ {[%clk 0:01:47]}  Kd6 {[%clk 0:01:10]} 32. g4 {[%clk 0:01:41]}  Rh7 {[%clk 0:01:00]} 33. Nh5 {[%clk 0:01:25]}  Be7 {[%clk 0:00:59]} 34. Rg8 {[%clk 0:01:19]}  b4 {[%clk 0:00:32]} 35. Rc8 {[%clk 0:01:11]}  Bg5 {[%clk 0:00:31]} 36. f4 {[%clk 0:01:12]}  b3 {[%clk 0:00:21]} 37. Rb8 {[%clk 0:01:05]}  Rxh5 {[%clk 0:00:17]} 38. fxg5 {[%clk 0:01:00]}  Rh3 {[%clk 0:00:02]} 39. Rxb3 {[%clk 0:01:01]}  Ne8 {[%clk 0:00:01]} 40. Rb7 {[%clk 0:01:01]} 1-0


[Site "https://www.chess.com"]

[Event "Titled Tuesday Blitz January 17 Early 2023"]
[White "Deac, Bogdan-Daniel"]
[Black "Harsh Suresh"]
[WhiteFideId "1226380"]
[BlackFideId "45018464"]
[WhiteElo "2700"]
[BlackElo "2298"]
[Result "1-0"]
[Round "06"]
[TimeControl "180+2"]
[Date "2023.01.17"]
[WhiteClock "0:00:08"]
[BlackClock "0:00:12"]

1. b3 {[%clk 0:02:57]}  d5 {[%clk 0:02:59]} 2. Bb2 {[%clk 0:02:56]}  Bg4 {[%clk 0:02:59]} 3. Nf3 {[%clk 0:02:56]}  Bxf3 {[%clk 0:02:59]} 4. exf3 {[%clk 0:02:57]}  e6 {[%clk 0:02:59]} 5. g3 {[%clk 0:02:57]}  Nf6 {[%clk 0:02:59]} 6. Bg2 {[%clk 0:02:57]}  g6 {[%clk 0:02:59]} 7. f4 {[%clk 0:02:57]}  Bg7 {[%clk 0:02:59]} 8. O-O {[%clk 0:02:57]}  O-O {[%clk 0:02:59]} 9. c4 {[%clk 0:02:57]}  c6 {[%clk 0:02:55]} 10. d4 {[%clk 0:02:56]}  Nbd7 {[%clk 0:02:53]} 11. Nd2 {[%clk 0:02:56]}  a5 {[%clk 0:02:53]} 12. Re1 {[%clk 0:02:49]}  a4 {[%clk 0:02:50]} 13. Qc2 {[%clk 0:02:48]}  Qa5 {[%clk 0:02:39]} 14. Bc3 {[%clk 0:02:45]}  Qa7 {[%clk 0:02:37]} 15. c5 {[%clk 0:02:44]}  Rfc8 {[%clk 0:02:31]} 16. b4 {[%clk 0:02:43]}  Ne8 {[%clk 0:02:25]} 17. a3 {[%clk 0:02:31]}  Nc7 {[%clk 0:02:25]} 18. Bf1 {[%clk 0:02:32]}  b6 {[%clk 0:02:14]} 19. Nf3 {[%clk 0:02:30]}  Rab8 {[%clk 0:01:52]} 20. h4 {[%clk 0:02:04]}  h5 {[%clk 0:01:50]} 21. Ng5 {[%clk 0:01:57]}  Nf6 {[%clk 0:01:43]} 22. Bd3 {[%clk 0:01:51]}  Ne4 {[%clk 0:01:16]} 23. Nxe4 {[%clk 0:01:25]}  dxe4 {[%clk 0:01:17]} 24. Rxe4 {[%clk 0:01:26]}  Nd5 {[%clk 0:01:13]} 25. cxb6 {[%clk 0:01:07]}  Qxb6 {[%clk 0:01:04]} 26. Bb2 {[%clk 0:01:06]}  Ra8 {[%clk 0:00:52]} 27. Rd1 {[%clk 0:01:02]}  Rd8 {[%clk 0:00:49]} 28. Bc4 {[%clk 0:00:52]}  Ne7 {[%clk 0:00:30]} 29. Bxe6 {[%clk 0:00:15]}  fxe6 {[%clk 0:00:30]} 30. Rxe6 {[%clk 0:00:16]}  Qb7 {[%clk 0:00:28]} 31. Rde1 {[%clk 0:00:08]}  Rd7 {[%clk 0:00:22]} 32. d5 {[%clk 0:00:08]}  cxd5 {[%clk 0:00:17]} 33. Bxg7 {[%clk 0:00:08]}  Kxg7 {[%clk 0:00:18]} 34. Qc5 {[%clk 0:00:07]}  Nf5 {[%clk 0:00:14]} 35. Rb6 {[%clk 0:00:05]}  Qc7 {[%clk 0:00:13]} 36. Rc6 {[%clk 0:00:06]}  Qa7 {[%clk 0:00:10]} 37. Qc3+ {[%clk 0:00:06]}  Qd4 {[%clk 0:00:09]} 38. Qc2 {[%clk 0:00:04]}  Rf8 {[%clk 0:00:08]} 39. Ree6 {[%clk 0:00:04]}  Qa1+ {[%clk 0:00:05]} 40. Kh2 {[%clk 0:00:04]}  Ne7 {[%clk 0:00:05]} 41. Rc7 {[%clk 0:00:04]}  Rxc7 {[%clk 0:00:02]} 42. Qxc7 {[%clk 0:00:04]}  Rf7 {[%clk 0:00:03]} 43. Rxe7 {[%clk 0:00:04]}  Rxe7 {[%clk 0:00:04]} 44. Qxe7+ {[%clk 0:00:05]}  Kg8 {[%clk 0:00:05]} 45. Qe8+ {[%clk 0:00:05]}  Kg7 {[%clk 0:00:04]} 46. Qe5+ {[%clk 0:00:05]}  Qxe5 {[%clk 0:00:03]} 47. fxe5 {[%clk 0:00:06]}  d4 {[%clk 0:00:03]} 48. Kg2 {[%clk 0:00:06]}  Kf7 {[%clk 0:00:04]} 49. Kf1 {[%clk 0:00:07]}  Ke6 {[%clk 0:00:05]} 50. f4 {[%clk 0:00:07]}  Kd5 {[%clk 0:00:05]} 51. Ke1 {[%clk 0:00:08]}  Kc4 {[%clk 0:00:06]} 52. e6 {[%clk 0:00:08]}  Kb3 {[%clk 0:00:07]} 53. Kd2 {[%clk 0:00:07]}  Kxa3 {[%clk 0:00:07]} 54. e7 {[%clk 0:00:08]}  Kxb4 {[%clk 0:00:08]} 55. e8=Q {[%clk 0:00:08]}  a3 {[%clk 0:00:09]} 56. Qb8+ {[%clk 0:00:08]}  Kc4 {[%clk 0:00:09]} 57. Qa7 {[%clk 0:00:09]}  Kb3 {[%clk 0:00:10]} 58. Kd3 {[%clk 0:00:09]}  Ka2 {[%clk 0:00:11]} 59. Kxd4 {[%clk 0:00:09]}  Kb2 {[%clk 0:00:12]} 60. Kd3 {[%clk 0:00:09]}  a2 {[%clk 0:00:12]} 61. Qb6+ {[%clk 0:00:09]}  Ka1 {[%clk 0:00:13]} 62. Qd4+ {[%clk 0:00:09]}  Kb1 {[%clk 0:00:13]} 63. Qb6+ {[%clk 0:00:08]}  Kc1 {[%clk 0:00:12]} 64. Qg1+ {[%clk 0:00:07]}  Kb2 {[%clk 0:00:12]} 65. Qd4+ {[%clk 0:00:08]}  Kb1 {[%clk 0:00:13]} 66. f5 {[%clk 0:00:08]}  gxf5 {[%clk 0:00:12]} 67. Qb4+ {[%clk 0:00:08]}  Kc1 {[%clk 0:00:11]} 68. Qc3+ {[%clk 0:00:08]}  Kb1 {[%clk 0:00:11]} 69. Qc2+ {[%clk 0:00:08]}  Ka1 {[%clk 0:00:12]} 70. Qc1# {[%clk 0:00:08]} 1-0


[Site "https://www.chess.com"]

[Event "Titled Tuesday Blitz January 17 Early 2023"]
[White "Eljanov, Pavel"]
[Black "Seo, Jung Min"]
[WhiteFideId "14102951"]
[BlackFideId "1734687"]
[WhiteElo "2705"]
[BlackElo "2494"]
[Result "1-0"]
[Round "06"]
[TimeControl "180+2"]
[Date "2023.01.17"]
[WhiteClock "0:01:06"]
[BlackClock "0:01:20"]

1. c4 {[%clk 0:02:52]}  d6 {[%clk 0:02:57]} 2. d4 {[%clk 0:02:51]}  e5 {[%clk 0:02:58]} 3. Nf3 {[%clk 0:02:51]}  e4 {[%clk 0:02:54]} 4. Ng5 {[%clk 0:02:50]}  f5 {[%clk 0:02:54]} 5. f3 {[%clk 0:02:48]}  Be7 {[%clk 0:02:48]} 6. Nh3 {[%clk 0:02:40]}  Nf6 {[%clk 0:02:47]} 7. Nc3 {[%clk 0:02:39]}  c6 {[%clk 0:02:37]} 8. Bg5 {[%clk 0:02:25]}  O-O {[%clk 0:02:36]} 9. Qb3 {[%clk 0:02:08]}  h6 {[%clk 0:02:20]} 10. Bd2 {[%clk 0:01:38]}  Kh7 {[%clk 0:02:19]} 11. O-O-O {[%clk 0:01:36]}  d5 {[%clk 0:02:19]} 12. e3 {[%clk 0:01:32]}  Na6 {[%clk 0:01:44]} 13. Kb1 {[%clk 0:01:27]}  Nc7 {[%clk 0:01:43]} 14. Rc1 {[%clk 0:01:19]}  dxc4 {[%clk 0:01:41]} 15. Bxc4 {[%clk 0:01:19]}  b5 {[%clk 0:01:41]} 16. Be2 {[%clk 0:01:19]}  Be6 {[%clk 0:01:40]} 17. Qc2 {[%clk 0:01:20]}  Kh8 {[%clk 0:01:34]} 18. Nf4 {[%clk 0:01:17]}  Bg8 {[%clk 0:01:32]} 19. fxe4 {[%clk 0:01:17]}  Bh7 {[%clk 0:01:25]} 20. e5 {[%clk 0:01:17]}  Ng4 {[%clk 0:01:24]} 21. h3 {[%clk 0:01:06]}  Nf2 {[%clk 0:01:24]} 22. Rhf1 {[%clk 0:01:07]}  Ne4 {[%clk 0:01:24]} 23. Nxe4 {[%clk 0:01:06]}  fxe4 {[%clk 0:01:24]} 24. Qxc6 {[%clk 0:01:06]}  Ne8 {[%clk 0:01:21]} 25. Ng6+ {[%clk 0:01:05]}  Bxg6 {[%clk 0:01:20]} 26. Qxg6 {[%clk 0:01:06]} 1-0


[Site "https://www.chess.com"]